Cogmind - Beta 16 @@@ ROGUE MODE // 2026.02.09 @ 14:38:00 Player: delto Result: Destroyed by S-27 Virus with Autogun Performance ------------- Evolutions (3) 1500 Regions Visited (10) 2000 Robots Destroyed (37) 185 Value Destroyed (918) 918 Prototype IDs (25) 500 Alien Tech Used (0) 0 Bonus (300) 300 TOTAL SCORE: 5403 Bonus ------- Aligned with FarCom 300 Cogmind --------- Core Integrity 0/700 Matter 264/300 Energy 159/160 System Corruption 10% Temperature Cool (0) Movement Walking (140) Location -7/Lower Caves Parts ------- > --- POWER (2) -------- Light Nuclear Core > --- PROPULSION (6) --- Makeshift Leg > --- UTILITY (3) ------ Advanced Heat Sink Machine Analyzer Trap Reconfigurator > --- WEAPON (2) ------- (None) > --- INVENTORY (5) ---- Multireflex Exoskeleton Improved Signal Interpreter Force Booster Advanced ECM Suite Peak State ------------ > --- POWER ------------ Improved Deuterium Engine Improved Deuterium Engine > --- PROPULSION ------- Improved Titanium Leg Improved Titanium Leg Improved Titanium Leg Improved Titanium Leg Improved Titanium Leg Improved Titanium Leg > --- UTILITY ---------- Large Storage Unit Trap Scanner Trap Reconfigurator > --- WEAPON ----------- Cooled Particle Cannon Scythe > --- INVENTORY -------- Carbon-fiber Leg Improved Titanium Leg Improved Titanium Leg Improved Titanium Leg Improved Titanium Leg Multireflex Exoskeleton Improved Cooling System Improved Signal Interpreter Improved Signal Interpreter ECM Suite Advanced ECM Suite Core Shielding Autogun [Rating: 57] Favorites ----------- Power Improved Ion Engine Engine Improved Ion Engine Power Core Micro Nuclear Core Propulsion Airjet Treads Light Treads Leg Improved Titanium Leg Wheel Wheel Hover Unit Airjet Utility Visual Processing Unit Device Trap Reconfigurator Storage Large Storage Unit Processor Visual Processing Unit Hackware System Shield Protection Core Shielding Weapon Scythe Energy Gun Medium Laser Energy Cannon Light EM Pulse Cannon Ballistic Gun Autogun Launcher Mini Grenade Launcher Impact Weapon Mace Slashing Weapon Scythe Build | -11 -10 -9 -9 -9 -8 -8 -7 -7 -7 -7 ------- Run | Yrd Mat Mat Min Exi Min Mat Fac Was Fac Low Slots Evolved 6 | . . 2 . . . 2 2 . . . Power 1 | . . 1 . . . . . . . . Propulsion 4 | . . 1 . . . 1 2 . . . Utility 1 | . . . . . . 1 . . . . Weapon . | . . . . . . . . . . . Parts Attached 68 | 8 7 3 4 1 1 10 18 . 1 15 Power 11 | 1 1 1 2 . . 1 3 . . 2 Engine 9 | 1 1 1 2 . . 1 2 . . 1 Core 2 | . . . . . . . 1 . . 1 Reactor . | . . . . . . . . . . . Propulsion 28 | 2 2 1 1 . . 5 9 . . 8 Treads 1 | 1 . . . . . . . . . . Leg 14 | . . . . . . . 6 . . 8 Wheel 1 | 1 . . . . . . . . . . Hover 12 | . 2 1 1 . . 5 3 . . . Flight . | . . . . . . . . . . . Utility 20 | 3 1 1 . 1 . 4 6 . . 4 Device 9 | 2 . 1 . 1 . 1 3 . . 1 Storage 3 | 1 . . . . . . 1 . . 1 Processor 3 | . 1 . . . . . 1 . . 1 Hackware 3 | . . . . . . 2 1 . . . Protection 2 | . . . . . . 1 . . . 1 Artifact . | . . . . . . . . . . . Weapon 9 | 2 3 . 1 . 1 . . . 1 1 Energy Gun 1 | 1 . . . . . . . . . . Energy Cannon 3 | . 2 . . . . . . . . 1 Ballistic Gun 2 | 1 . . . . . . . . 1 . Ballistic Cannon . | . . . . . . . . . . . Launcher 1 | . . . 1 . . . . . . . Special Weapon . | . . . . . . . . . . . Impact Weapon 1 | . 1 . . . . . . . . . Slashing Weapon 1 | . . . . . 1 . . . . . Piercing Weapon . | . . . . . . . . . . . Special Melee Weapon . | . . . . . . . . . . . Unidentified Prototypes 2 | . . . . . . . . . . 2 Parts Lost 25 | . . . 2 . . . 1 . . 22 Power 4 | . . . 1 . . . . . . 3 Propulsion 14 | . . . 1 . . . 1 . . 12 Utility 4 | . . . . . . . . . . 4 Weapon 3 | . . . . . . . . . . 3 Highest Loss Streak 13 | . . . 1 . . . 1 . . 13 To Critical Strikes . | . . . . . . . . . . . Average Backups 5 | 2 5 4 4 5 4 4 4 5 9 8 Power . | . . . . . . . . . . . Propulsion 3 | 1 3 3 4 4 4 3 1 3 4 1 Utility 2 | . . . . . . . 3 1 4 6 Weapon . | . . . . 1 . . . . . . Tool/Special . | . . . . . . . . . . . Unused Backups 21 | . 5 . . . . 5 6 . . 5 Power . | . . . . . . . . . . . Propulsion 8 | . 3 . . . . 4 1 . . . Utility 9 | . . . . . . . 4 . . 5 Weapon 3 | . 2 . . . . . 1 . . . Tool/Special 1 | . . . . . . 1 . . . . Average Slot Usage (%) 92 | . 98 99 97 100 100 99 98 96 96 64 Engine 14 | . 14 22 19 22 22 18 9 15 15 2 Leg 10 | . . . . . . . 9 46 46 25 Hover 24 | . 25 32 33 33 33 36 34 . . . Device 10 | . 19 11 11 11 11 2 19 15 15 8 Storage 2 | . 2 . . . . . . 4 7 9 Processor 6 | . 6 11 11 11 11 9 2 2 . . Hackware 4 | . . . . . . 14 . . . . Energy Cannon 2 | . 11 11 9 . . . . . . . Ballistic Gun 1 | . 2 . . . . . . . 4 4 Launcher 4 | . . . 1 11 11 9 7 3 . . Impact Weapon 2 | . 11 11 11 11 6 . . . . . Slashing Weapon 5 | . . . . . 4 9 7 7 7 6 Peak Build Rating 57 | 7 12 16 17 25 26 37 54 54 54 57 Average Rating 31 | 5 11 15 15 21 25 32 47 51 52 29 On Entrance 27 | . 7 12 15 17 25 26 37 54 50 54 Avg Prop Armor Cover (%) 15 | 15 13 . . . . . . . . . Naked Turns . | . . . . . . . . . . . Heaviest Build 53 | 14 15 14 21 21 21 22 46 46 48 53 Greatest Support 120 | 20 14 21 21 21 21 36 120 120 120 120 Greatest Overweight (x) 2 | 1 1 . . . . . 1 . . 2 Average Overweight (x) . | . . . . . . . . . . . Largest Inventory Capacity 15 | 8 8 5 5 5 5 5 15 15 15 15 Average Capacity 7 | 7 5 5 5 5 5 5 5 11 15 14 Most Carried 15 | 5 7 5 5 5 5 5 6 6 13 15 Average Carried 6 | 2 4 4 4 5 4 4 4 5 11 9 Final Capacity 15 | 8 5 5 5 5 5 5 5 15 15 5 Final Carried 13 | 5 5 5 5 5 5 5 5 6 13 5 Class Distribution -------------------- 62% | Mutant 26% | Hacker-Mutant 7% | Scout 3% | Scavenger-Mutant Dominant Class ---------------- Mutant | -10/Materials Scavenger-Mutant | -9/Materials Mutant | -9/Mines Mutant | -9/Exiles Mutant | -8/Mines Hacker-Mutant | -8/Materials Mutant | -7/Factory Mutant | -7/Waste Mutant | -7/Factory Mutant | -7/Lower Caves Resources | -11 -10 -9 -9 -9 -8 -8 -7 -7 -7 -7 ----------- Run | Yrd Mat Mat Min Exi Min Mat Fac Was Fac Low Matter Collected 914 | 288 74 46 50 10 10 8 63 . . 365 Remotely 195 | 125 70 . . . . . . . . . Salvage Created 1028 | 113 74 154 121 . . 81 63 . . 422 Parts 74 | 6 9 13 8 . . 15 4 . . 19 Haulers Intercepted 1 | . . . . . . 1 . . . . Recyclers Shooed . | . . . . . . . . . . . Parts Field Recycled 17 | . . . . . . . 17 . . . Retrieved Matter 232 | . . . . . . . 232 . . . Parts Self-Destructed 17 | . . . . . . . . . . 17 Prevented . | . . . . . . . . . . . Parts Restored . | . . . . . . . . . . . Kills | -11 -10 -9 -9 -9 -8 -8 -7 -7 -7 -7 ------- Run | Yrd Mat Mat Min Exi Min Mat Fac Was Fac Low Combat Hostiles Destroyed 28 | . 3 3 4 . . 6 3 . . 9 Melee 6 | . . . 1 . . . 3 . . 2 Guns 2 | . . . . . . . . . . 2 Cannons 11 | . 3 3 1 . . . . . . 4 AOE 8 | . . . 2 . . 6 . . . . Classes Destroyed 9 | 2 2 2 1 . . 1 . . . 1 Tunneler 1 | 1 . . . . . . . . . . Hauler 1 | . . . . . . 1 . . . . Recycler 1 | 1 . . . . . . . . . . Operator 3 | . . 2 . . . 1 . . . . Watcher 3 | . 1 1 . . . 1 . . . . Swarmer 16 | . 3 1 2 . . 6 3 . . 1 Grunt 10 | . . 2 1 . . . . . . 7 Brawler 1 | . . . 1 . . . . . . . Duelist 1 | . . . . . . . . . . 1 Best Kill Streak 7 | 1 4 3 2 . . 7 3 . . 4 Combat Bots Only 6 | . 3 2 2 . . 6 3 . . 4 Max Kills in Single Turn 3 | 1 1 1 2 . . 3 1 . . 1 Gunslinging . | . . . . . . . . . . . Exploded 3 | . . . 2 . . 3 . . . . Melee 1 | . . . 1 . . . 1 . . 1 Uniques/NPCs Destroyed . | . . . . . . . . . . . Combat | -11 -10 -9 -9 -9 -8 -8 -7 -7 -7 -7 -------- Run | Yrd Mat Mat Min Exi Min Mat Fac Was Fac Low Hostile Shots Fired 366 | . 4 22 32 . . 7 19 . . 282 Missed 109 | . 1 10 17 . . 2 8 . . 71 Hits 257 | . 3 12 15 . . 5 11 . . 211 Melee 5 | . . . . . . . . . . 5 Projectile 252 | . 3 12 15 . . 5 11 . . 206 Critical Strikes 3 | . . . . . . . . . . 3 Damage Taken 3907 | . 26 96 135 . . 86 162 . . 3402 Core 806 | . 8 29 22 . . 36 15 . . 696 Absorbed by Shields 3 | . . 3 . . . . . . . . Redirected to Shielding 50 | . . . . . . . . . . 50 Core Remaining (%) 94 | 100 96 . . . 87 93 . . . . Volleys Fired 95 | 8 7 14 12 . . 7 . . . 47 Largest 2 | 2 1 1 1 . . 1 . . . 1 Hottest 70 | 70 56 56 56 . . 30 . . . 30 Shots Fired 104 | 16 7 14 12 . . 7 . . 1 47 Gun 40 | 16 . . . . . . . . 1 23 Cannon 56 | . 7 14 11 . . . . . . 24 Launcher 8 | . . . 1 . . 7 . . . . Special . | . . . . . . . . . . . Kinetic 32 | 8 . . . . . . . . 1 23 Thermal 32 | 8 . . . . . . . . . 24 Explosive 8 | . . . 1 . . 7 . . . . Electromagnetic 32 | . 7 14 11 . . . . . . . Robot Hit Streak 10 | 5 6 5 2 . . 2 . . . 10 Robot Miss Streak 4 | 2 1 1 3 . . 2 . . . 4 Penetration Max . | . . . . . . . . . . . Secondary Targets . | . . . . . . . . . . . Shots Hit Robots 79 | 10 6 10 6 . 1 2 6 . . 38 Core Hits 46 | 5 4 6 4 . . 9 3 . . 15 Critical Kills . | . . . . . . . . . . . Critical Parts Destroyed . | . . . . . . . . . . . Critical Strikes 2 | . . . . . . . 1 . . 1 Sever 2 | . . . . . . . 1 . . 1 Melee Attacks 23 | . . 1 1 . 1 2 9 . 3 6 Impact 3 | . . 1 1 . 1 . . . . . Slashing 20 | . . . . . . 2 9 . 3 6 Piercing . | . . . . . . . . . . . Sneak Attacks 2 | . . . 1 . 1 . . . . . Combat Hostiles 1 | . . . 1 . . . . . . . Follow-up Attacks . | . . . . . . . . . . . Damage Inflicted 2495 | 105 142 283 225 . 50 508 191 . . 991 Guns 372 | 105 . . . . . . . . . 267 Cannons 1116 | . 142 283 98 . . . . . . 593 Explosions 555 | . . . 47 . . 508 . . . . Melee 445 | . . . 80 . 50 . 191 . . 124 Ramming 7 | . . . . . . . . . . 7 Kinetic 297 | 30 . . . . . . . . . 267 Thermal 668 | 75 . . . . . . . . . 593 Explosive 555 | . . . 47 . . 508 . . . . Electromagnetic 523 | . 142 283 98 . . . . . . . Impact 130 | . . . 80 . 50 . . . . . Slashing 315 | . . . . . . . 191 . . 124 Piercing . | . . . . . . . . . . . Highest Corruption 10 | . . . . . . . . 10 10 10 Average Corruption 10 | . . . . . . . . 10 10 10 Corruption Purged . | . . . . . . . . . . . Corruption Blocked . | . . . . . . . . . . . Effects 38 | . . . . . . . . 5 8 25 Message Errors 5 | . . . . . . . . 1 1 3 Matter Fused 9 | . . . . . . . . 1 2 6 Heat Flow Errors 6 | . . . . . . . . . 1 5 Energy Discharges 6 | . . . . . . . . . 1 5 Parts Rejected 1 | . . . . . . . . 1 . . Parts Fused 3 | . . . . . . . . 1 . 2 Data Loss (minor) 6 | . . . . . . . . 1 1 4 Misfires 1 | . . . . . . . . . 1 . Alerts 1 | . . . . . . . . . 1 . Overload Shots . | . . . . . . . . . . . Overflow Damage 68 | . . 6 . . 10 31 6 . . 15 Projectiles 21 | . . 6 . . . . . . . 15 Explosions 31 | . . . . . . 31 . . . . Melee 16 | . . . . . 10 . 6 . . . Knockbacks 1 | . . . . . 1 . . . . . Impact 1 | . . . . . 1 . . . . . Kinetic . | . . . . . . . . . . . Secondary . | . . . . . . . . . . . Self-Inflicted Damage 43 | . . . . . . 43 . . . . Shots 2 | . . . . . . 2 . . . . Rammed . | . . . . . . . . . . . Targets Rammed 7 | . . . . . . . . . . 7 Kicked 7 | . . . . . . . . . . 7 Crushed . | . . . . . . . . . . . Highest Temperature 312 | 50 140 95 115 . . 4 312 . 131 221 Average Temperature 80 | 24 73 42 40 . . 4 103 . 60 77 Received Heat Transfer 1480 | . . 13 9 . . . . . . 1458 Siege Activations . | . . . . . . . . . . . Martial Activations . | . . . . . . . . . . . Shielding Activations . | . . . . . . . . . . . Robots Disrupted . | . . . . . . . . . . . Combat Hostiles . | . . . . . . . . . . . Robots Corrupted . | . . . . . . . . . . . Combat Hostiles . | . . . . . . . . . . . Parts Fried 1 | . . 1 . . . . . . . . Impact Corruptions 1 | . . . . . 1 . . . . . Robots Melted 1 | . . . . . . . . . . 1 Combat Hostiles 1 | . . . . . . . . . . 1 Parts Melted 1 | . . . . . . . . . . 1 Heat Transferred 1036 | 222 . . . . . . . . . 814 Parts Sabotaged . | . . . . . . . . . . . Parts Stolen . | . . . . . . . . . . . Parts Stripped . | . . . . . . . . . . . Power Chain Reactions . | . . . . . . . . . . . Alert | -11 -10 -9 -9 -9 -8 -8 -7 -7 -7 -7 ------- Run | Yrd Mat Mat Min Exi Min Mat Fac Was Fac Low Maximum Alert Level 1 | . . . . . . 1 . . . . Low Security (%) 99 | 100 100 100 100 . 100 97 100 100 100 . Level 1 . | . . . . . . 2 . . . . Level 2 . | . . . . . . . . . . . Level 3 . | . . . . . . . . . . . Level 4 . | . . . . . . . . . . . Level 5 . | . . . . . . . . . . . High Security . | . . . . . . . . . . . Max Security . | . . . . . . . . . . . Peak Influence 209 | 5 70 40 83 . . 209 99 . 2 . Initial 89 | . . 8 7 . . . 89 . . . Average 19 | 1 26 21 17 . . 18 38 . . . Influence Increases 962 | 10 77 89 173 . . 286 114 . 3 210 Destroy 0b10 Robot/C 560 | . 60 60 80 . . 120 60 . . 180 Destroy 0b10 Robot/NC 45 | 10 5 15 . . . 15 . . . . Destroy Leader 88 | . 12 2 10 . . 24 10 . . 30 Allied During Kill 4 | . . . 4 . . . . . . . Successful Hack 34 | . . 11 . . . 9 14 . . . Disable Machine 75 | . . . 15 . . 45 15 . . . Destroy Structure 51 | . . 1 4 . . 43 . . 3 . Partial Spotted 30 | . . . . . . 30 . . . . Lose Combat Pursuer 75 | . . . 60 . . . 15 . . . Influence Decreases 962 | 10 57 90 129 63 . 89 311 . 3 210 Entered New Map 195 | . . 12 12 63 . . 108 . . . Time Decay 611 | 10 57 78 105 . . 89 193 . 3 76 Lost Part 156 | . . . 12 . . . 10 . . 134 Squads Dispatched 2 | . . . . . . 1 1 . . . Investigation . | . . . . . . . . . . . Extermination 1 | . . . . . . . 1 . . . Reinforcement 1 | . . . . . . 1 . . . . Assault . | . . . . . . . . . . . Garrison . | . . . . . . . . . . . Intercept . | . . . . . . . . . . . Searches Triggered . | . . . . . . . . . . . Construction Impeded . | . . . . . . . . . . . Haulers Reinforced . | . . . . . . . . . . . Active Scanning Responses . | . . . . . . . . . . . Cargo Convoy Interrupts . | . . . . . . . . . . . Stealth | -11 -10 -9 -9 -9 -8 -8 -7 -7 -7 -7 --------- Run | Yrd Mat Mat Min Exi Min Mat Fac Was Fac Low Distress Signals 7 | . 1 4 . . . 2 . . . . Communications Jammed . | . . . . . . . . . . . Distress Signals . | . . . . . . . . . . . Times Spotted 60 | . 4 16 6 . . 12 5 6 . 11 Peak Tracking Total 8 | . 4 8 5 . . 4 4 6 . 8 Tactical Retreats 3 | . . . 2 . . . 1 . . . Traps | -11 -10 -9 -9 -9 -8 -8 -7 -7 -7 -7 ------- Run | Yrd Mat Mat Min Exi Min Mat Fac Was Fac Low Traps Triggered 4 | . . . . . . 1 3 . . . Indirectly . | . . . . . . . . . . . Trap Hack Attempts . | . . . . . . . . . . . Triggered . | . . . . . . . . . . . Disarmed . | . . . . . . . . . . . Reprogrammed . | . . . . . . . . . . . Reused . | . . . . . . . . . . . Traps Reconfigurated 14 | . . . . . . 2 11 . 1 . Traps Extracted . | . . . . . . . . . . . Installed . | . . . . . . . . . . . Triggered . | . . . . . . . . . . . Machines | -11 -10 -9 -9 -9 -8 -8 -7 -7 -7 -7 ---------- Run | Yrd Mat Mat Min Exi Min Mat Fac Was Fac Low Machines Disabled 5 | . . . 1 . . 3 1 . . . Max in Single Turn 2 | . . . 1 . . 2 1 . . . Garrison Access 1 | . . . . . . . 1 . . . Machines Repaired . | . . . . . . . . . . . Machines Dismantled . | . . . . . . . . . . . Machines Sabotaged . | . . . . . . . . . . . Overloaded Fab Kills . | . . . . . . . . . . . Hacking | -11 -10 -9 -9 -9 -8 -8 -7 -7 -7 -7 --------- Run | Yrd Mat Mat Min Exi Min Mat Fac Was Fac Low Machines Accessed 13 | . . 2 . 1 . 6 3 . 1 . Terminals 10 | . . 2 . . . 5 2 . 1 . Fabricators . | . . . . . . . . . . . Repair Stations . | . . . . . . . . . . . Recycling Units . | . . . . . . . . . . . Scanalyzers 1 | . . . . . . 1 . . . . Garrison Access 1 | . . . . . . . 1 . . . Total Hacks 33 | . . 5 . 1 . 17 8 . 2 . Successful 17 | . . 3 . 1 . 8 4 . 1 . Failed 16 | . . 2 . . . 9 4 . 1 . Catastrophic 2 | . . . . . . . 1 . 1 . Database Lockouts . | . . . . . . . . . . . Manual 32 | . . 5 . 1 . 16 7 . 3 . Terminals 30 | . . 5 . . . 16 7 . 2 . Fabricators . | . . . . . . . . . . . Repair Stations . | . . . . . . . . . . . Recycling Units . | . . . . . . . . . . . Scanalyzers 1 | . . . . . . 1 . . . . Garrison Access 1 | . . . . . . . 1 . . . Terminal Hacks 6 | . . 1 . 1 . 3 1 . . . Branch Access Points 3 | . . 1 . . . 2 . . . . Terminal Index 2 | . . . . . . 1 1 . . . Proto ID Catalog 1 | . . . . 1 . . . . . . Fabricator Hacks . | . . . . . . . . . . . Repair Station Hacks . | . . . . . . . . . . . Recycling Unit Hacks . | . . . . . . . . . . . Scanalyzer 1 | . . . . . . 1 . . . . Retrieve Study 1 | . . . . . . 1 . . . . Garrison Access Hacks 1 | . . . . . . . 1 . . . Seal Access 1 | . . . . . . . 1 . . . Unauthorized Hacks 9 | . . 2 . . . 4 2 . 1 . Terminals 9 | . . 2 . . . 4 2 . 1 . Assimilate 1 | . . . . . . 1 . . . . Botnet 8 | . . 2 . . . 3 2 . 1 . Fabricators . | . . . . . . . . . . . Repair Stations . | . . . . . . . . . . . Recycling Units . | . . . . . . . . . . . Scanalyzers . | . . . . . . . . . . . Garrison Access . | . . . . . . . . . . . Data Cores Recovered 3 | . . 2 . . . 1 . . . . Used 1 | . . 1 . . . . . . . . Hacking Detections 6 | . . . . . . 4 2 . . . Full Trace Events . | . . . . . . . . . . . Feedback Events . | . . . . . . . . . . . Feedback Blocked . | . . . . . . . . . . . Robot Schematics Acquired . | . . . . . . . . . . . Robots Built . | . . . . . . . . . . . Authchips . | . . . . . . . . . . . Time . | . . . . . . . . . . . Total Robot Build Rating . | . . . . . . . . . . . Part Schematics Acquired . | . . . . . . . . . . . Parts Built . | . . . . . . . . . . . Authchips . | . . . . . . . . . . . Time . | . . . . . . . . . . . Total Part Build Rating . | . . . . . . . . . . . Part Studies Acquired 1 | . . . . . . 1 . . . . Parts Repaired . | . . . . . . . . . . . Time . | . . . . . . . . . . . Parts Recycled . | . . . . . . . . . . . Recycled Matter . | . . . . . . . . . . . Retrieved Matter . | . . . . . . . . . . . Retrieved Components . | . . . . . . . . . . . Parts Scanalyzed . | . . . . . . . . . . . Part Schematics Acquired . | . . . . . . . . . . . Parts Damaged . | . . . . . . . . . . . Bothacking | -11 -10 -9 -9 -9 -8 -8 -7 -7 -7 -7 ------------ Run | Yrd Mat Mat Min Exi Min Mat Fac Was Fac Low Used RIF Installer . | . . . . . . . . . . . Robots Hacked . | . . . . . . . . . . . Non-combat . | . . . . . . . . . . . Combat . | . . . . . . . . . . . Robot Hacks Applied . | . . . . . . . . . . . Relay Couplers Released . | . . . . . . . . . . . Fabnet Peak Effective % . | . . . . . . . . . . . Robots Rewired . | . . . . . . . . . . . Allies Hacked . | . . . . . . . . . . . Hacks Repelled . | . . . . . . . . . . . Allies | -11 -10 -9 -9 -9 -8 -8 -7 -7 -7 -7 -------- Run | Yrd Mat Mat Min Exi Min Mat Fac Was Fac Low Total Allies 1 | . . . 1 . . . . . . . Largest Group 1 | . . . 1 . . . . . . . Highest-Rated Group 31 | . . . 31 . . . . . . . Highest-Rated Ally 31 | . . . 31 . . . . . . . Total Orders . | . . . . . . . . . . . Ally Attacks 4 | . . . 4 . . . . . . . Total Damage . | . . . . . . . . . . . Kills . | . . . . . . . . . . . Allies Corrupted . | . . . . . . . . . . . Allies Melted . | . . . . . . . . . . . Intel | -11 -10 -9 -9 -9 -8 -8 -7 -7 -7 -7 ------- Run | Yrd Mat Mat Min Exi Min Mat Fac Was Fac Low Active Infowar (turns) 3207 | 8 191 164 396 137 114 1086 612 108 229 162 Optics 2173 | . 91 164 396 137 114 1086 185 . . . Traps 1138 | . . . . . . 99 610 108 229 92 Seismic 789 | 8 191 130 396 64 . . . . . . Machine Analysis 70 | . . . . . . . . . . 70 Robot Analysis Total . | . . . . . . . . . . . Derelict Logs Recovered 2 | . . . 2 . . . . . . . Drone Launches . | . . . . . . . . . . . Drone Recoveries . | . . . . . . . . . . . Exploration | -11 -10 -9 -9 -9 -8 -8 -7 -7 -7 -7 ------------- Run | Yrd Mat Mat Min Exi Min Mat Fac Was Fac Low Turns Passed 3817 | 104 191 164 396 137 114 1086 612 108 229 676 Spaces Moved 3481 | 71 258 240 622 260 204 574 747 82 164 259 Core 29 | 3 . . . . . . . . . 26 Treads 2 | 2 . . . . . . . . . . Legs 566 | . . . . . . . 87 82 164 233 Wheels 70 | 66 4 . . . . . . . . . Hover 2814 | . 254 240 622 260 204 574 660 . . . Flight . | . . . . . . . . . . . Fastest Speed 40 | 50 56 52 52 52 52 48 40 130 130 50 Average Speed 63 | 92 57 52 52 52 52 48 51 130 130 122 Slowest Speed 200 | 160 120 52 52 52 52 48 200 130 130 200 Overloaded Moves . | . . . . . . . . . . . Propulsion Burnouts . | . . . . . . . . . . . Robots Hopped . | . . . . . . . . . . . Potential Cave-ins . | . . . . . . . . . . . Cave-ins Triggered . | . . . . . . . . . . . Exploration Rate (%) 41 | 4 34 34 98 63 45 42 20 84 2 33 Regions Visited 10 Branch Regions 4 Pre-discovered Areas 1 | . . . 1 . . . . . . . Known Exits Taken 1 | . . 1 . . . . . . . . Unknown Exits Taken 7 | 1 1 . 1 1 1 1 . . 1 . Scrap Searched 6 | . . . 2 . 2 . . . . 2 Spaces Dug 6 | . . 1 . . . 2 . . 3 . Terrain Destroyed 49 | . . 1 4 . . 40 . . 3 1 Melee 6 | . . 1 . . . 2 . . 3 . Projectile 1 | . . . . . . . . . . 1 AOE 42 | . . . 4 . . 38 . . . . Terrain Rammed . | . . . . . . . . . . . Walls Destroyed . | . . . . . . . . . . . Machines Disabled . | . . . . . . . . . . . Actions | -11 -10 -9 -9 -9 -8 -8 -7 -7 -7 -7 --------- Run | Yrd Mat Mat Min Exi Min Mat Fac Was Fac Low Total 4963 | 91 300 262 679 261 210 1375 968 83 175 559 Wait 1147 | . . . 39 . 1 753 148 . . 206 Move 3472 | 70 257 239 621 259 203 573 747 81 163 259 Hop . | . . . . . . . . . . . Pick Up 63 | 5 8 3 1 . 2 12 15 1 8 8 Fast Attach 40 | 7 7 . 2 1 . 4 15 . . 4 Attach 22 | . . 2 1 . . 2 3 . 1 13 Detach 10 | . 5 . . . . 1 2 . . 2 Swap 25 | 1 1 2 1 . 1 8 6 1 . 4 Drop 59 | . 15 1 1 1 2 13 23 . . 3 Fire 95 | 8 7 14 12 . . 7 . . . 47 Melee 23 | . . 1 1 . 1 2 9 . 3 6 Ram . | . . . . . . . . . . . Kick 7 | . . . . . . . . . . 7 Crush . | . . . . . . . . . . . Escape Stasis . | . . . . . . . . . . . Rewire . | . . . . . . . . . . . Trap . | . . . . . . . . . . . Miscellaneous . | . . . . . . . . . . . Route ------- -11/Scrapyard -10/Materials (discovered 2 exits: *Mat / [*Min]) -9/Materials (discovered 2 exits: *Min / *Sto) -9/Mines (discovered 3 exits: *Mat x2 / *Exi) -9/Exiles -8/Mines -8/Materials -7/Factory -7/Waste -7/Factory -7/Lower Caves History --------- Turn | Location | Event 16 | -11/Scrapyard | Discovered new exit (range 14) 105 | -11/Scrapyard | Entered Materials 265 | -10/Materials | Discovered new exit (range 4) 279 | -10/Materials | Discovered new exit (range 14) 296 | -10/Materials | Entered another Materials area 296 | -9/Materials | Evolved 2 slots: Power x1, Propulsion x1 332 | -9/Materials | Discovered new exit (range 13) 396 | -9/Materials | Identified exit to Mines 396 | -9/Materials | Identified exit to Storage 460 | -9/Materials | Entered Mines 545 | -9/Mines | Learned 2 Materials zone layouts 555 | -9/Mines | Discovered new exit (range 12) 558 | -9/Mines | Received a Mining Laser from a helpful Derelict 658 | -9/Mines | Learned location of Storage (-9) 746 | -9/Mines | Discovered new exit (range 14) 767 | -9/Mines | Build established: Mutant 830 | -9/Mines | Deemed a non-threat by the Exiles lab entrance 830 | -9/Mines | Discovered new exit (range 5) 856 | -9/Mines | Entered Exiles 856 | -9/Exiles | Accompanied by 1 ally 870 | -9/Exiles | Met 8R-AWN 878 | -9/Exiles | Met EX-HEX 893 | -9/Exiles | Met EX-BIN 901 | -9/Exiles | Aligned with FarCom system 901 | -9/Exiles | Given EX-Vault access code 916 | -9/Exiles | Opened EX-Vault 920 | -9/Exiles | Found Trap Reconfigurator 932 | -9/Exiles | Warned to stay clear of 0b10 Research branches 946 | -9/Exiles | Met EX-DEC 989 | -9/Exiles | Discovered new exit (range 10) 993 | -9/Exiles | Left Exiles lab with Trap Reconfigurator 993 | -9/Exiles | Entered Mines 1106 | -8/Mines | Discovered new exit (range 4) 1107 | -8/Mines | Entered Materials 1107 | -8/Materials | Evolved 2 slots: Propulsion x1, Utility x1 1397 | -8/Materials | Build established: Hacker-Mutant 2182 | -8/Materials | Discovered new exit (range 18) 2193 | -8/Materials | Entered Factory 2193 | -7/Factory | Evolved 2 slots: Propulsion x2 2718 | -7/Factory | Build established: Mutant 2805 | -7/Factory | Sucked down chute 2805 | -7/Factory | Entered Waste 2815 | -7/Waste | Spotted C-40 Crusher 2817 | -7/Waste | Spotted C-40 Crusher 2820 | -7/Waste | EMP discharged 2820 | -7/Waste | System corruption reached 10% 2849 | -7/Waste | Spotted C-40 Crusher 2856 | -7/Waste | Spotted C-40 Crusher 2857 | -7/Waste | Spotted C-40 Crusher 2859 | -7/Waste | Spotted C-40 Crusher 2894 | -7/Waste | Discovered new exit (range 16) 2913 | -7/Waste | Entered Factory 3130 | -7/Factory | Discovered new exit (range 9) 3142 | -7/Factory | Entered Lower Caves 3287 | -7/Lower Caves | Core integrity fell below 50% 3343 | -7/Lower Caves | Lost 13 parts (2p9n1u1w) 3774 | -7/Lower Caves | Core integrity fell below 20% 3818 | -7/Lower Caves | Destroyed by S-27 Virus with Autogun Last Messages --------------- 03754_ Destroyed Lgt. Nuclear Core. 03756_ S-27 Virus destroyed. 03759_ Autogun destroyed. 03767_ System corrupted: Component data lost. 03776_ Kicked S-27 Virus. 03782_ Kicked S-27 Virus out of the way. 03784_ Kicked S-27 Virus. 03788_ Imp. Titanium Leg destroyed. 03790_ Dropped Lrg. Storage Unit. 03792_ Acquired Imp. Signal Interpreter. 03803_ WW=T,OZP/TO7,CF/>O4UG3UU 03804_ Searching scrap... 03804_ Found Mak. Leg. 03804_ Found Salvage Targeting Computer. 03804_ Found Lgt. Nuclear Core. 03804_ Found Matter Filter. 03804_ Found 67 Matter. 03805_ Acquired Lgt. Nuclear Core. 03808_ Acquired Mak. Leg. 03809_ Acquired 67 matter. Map ----- +----------------------------------------------------+ | ?????????????????????????????????????????????????? | | ?????????????????????????????????????????????????? | | ?????????????????????????????????????????????????? | | ?????????????????????????????????????????????????? | | ?????????????????????????????????????????????????? | | ?????????????????????????????????????????????????? | | ?????????????????????????????????????????????????? | | ?????????????????????????????????????????????????? | | ?????????????????????????????????????????????????? | | ?????????????????????????????????????????????????? | | ?????????????????????????????????????????????????? | | ?????????????????????????????????????????????????? | | ?????????????????????????????????????????????????? | | ?????????????????????????????????????????????????? | | ?????????????????????????????????????????????????? | | ?????????????????????????????????????????????????? | | ?????????????????????????????????????????????????? | | ???????????????????? ?####??????????????????????? | | ???????????????????? ? ????????? ???????????? | | ???????????????????# ? $ ???????? ??????????? | | ???????????????????# ## #+#####? ???????????? | | ?????????????????### #" # ????????????? | | ????????????????## #" ??????????????? | | ???????????? ### # = [ "#????????????????? | | ????????????? #" "#????????????????? | | ???????????????????# "g@ #? ??????????????? | | ???????????????????# """# ?????????????? | | ???????????????????# T """# ?????????????? | | ???????????????????# #" s """# #?????????????? | | ???????????????????# #" " """# #?????????????? | | ???????????????????# ##s# ##### #?????????????? | | ???????????????????# ! #?????????????? | | ???????????????????# #?????????????? | | ?????????????####### ######### ##?????????????? | | ?????# ### #?# ##???????####???? | | ??????# ### #####???# #???? | | ??????# ## ## # #??# #????? | | ??????# ######??# # #?# #?????? | | ????????????????# ### ## #??????? | | ??????????????# #?## ####???? | | ?????????????# ### ##??? | | ???????????? #??? | | ?????????? ### #??? | | ????????? #??### ### ## #???? | | ???????? ?????# ####?# ### ##???? | | ???????? ?????## ##???## !! ## #????? | | ???????? ## ??????###????# %! #????# | | ???????? #?# ?????????????# ###### | | ????????????## ?????????????# # | | ?????????????# ??????????????# ## | +----------------------------------------------------+ Best States ------------- Heat Dissipation 61 Energy Generation 27 Energy Capacity 480 Matter Stores 300 Matter Capacity 300 Sight Range 18 Terrain Scan Density 10 Core Shielding 20 Utility Shielding 33 Evasion (%) 57 Melee Accuracy 6 Offensive Hacking 10 Defensive Hacking 10 Item Schematics ----------------- None Robot Schematics ------------------ None Fabricated ------------ Nothing Repaired ---------- Nothing Studied --------- Airjet | -8/Materials | Hacked Alien Tech Used ----------------- None Achievements -------------- root@ Challenges ------------ None Game ------ Seed OpticalNetworkedTerminator Manual? 0 Play Time 01:01:15 Cumulative 111.3 hours Start 2026.02.08 @ 16:58:54 End 2026.02.09 @ 14:38:00 Sessions 5 Manual Loads 0 Difficulty Rogue Special Mode None Game No. 139 Rogue 139 Adventurer 0 Explorer 0 Win Type - Total 1 Types 1/0/0/0/0/0/0/0/0/0 Lore% 24 Gallery% 45 Achievement% 31 Wizard Run 0 Options --------- Layout 0 ASCII 0 Keyboard 0 Movement Mouse Keybinds 0 Fullscreen 1 Font 24/Smallcaps Map View 76x50 Zoom Use 0% Tactical HUD 1 Map Filters NONE Filters NONE Steam 1 RUN: 435965d9-7c10-41e6-bbf2-e09b7244bfe7